bitfinex/quotes_ETHUSD_20250422
["timestamp","ask_amount","ask_price","bid_price","bid_amount"]
[1745323280491,11.47139163,1632.3,1631.9,3.76404694]
[1745323280683,6.12639163,1632.3,1632.0,1.2370765]
[1745323281587,12.25243055,1632.4,1632.0,1.2370765]
[1745323281825,6.12617309,1632.4,1632.0,1.17580469]
[1745323282020,6.12654138,1632.3,1632.0,1.17580469]
[1745323282198,6.12672717,1632.2,1632.0,0.7994]
[1745323283027,6.12707554,1632.1,1631.8,0.42706614]
[1745323284524,6.12781184,1632.0,1631.7,1.30601443]
[1745323284710,6.12782645,1631.9,1631.7,1.30601443]
[1745323284911,6.12820198,1631.8,1631.5,1.26292699]
[1745323285229,6.12796549,1631.9,1631.5,0.7994]
[1745323285403,6.12796549,1631.9,1631.6,0.06127982]
[1745323285603,6.12796549,1631.9,1631.6,0.06127981]
[1745323285800,12.25542617,1632.0,1631.6,3.82532675]
[1745323286004,12.25542617,1632.0,1631.6,4.28779943]
[1745323286333,6.1277128,1632.0,1631.6,4.22651962]
[1745323286713,6.12724749,1632.1,1631.6,4.22651962]
[1745323286916,12.3619153,1632.3,1631.6,4.22651962]
[1745323286917,12.2539493,1632.2,1631.8,0.8255]
[1745323287222,6.12709868,1632.1,1631.8,4.58954694]
[1745323287429,6.12709868,1632.1,1631.8,5.04850163]
[1745323287853,6.12782645,1631.9,1631.8,0.8255]
[1745323288049,6.12782645,1631.9,1631.6,5.05201962]
[1745323288251,6.12837717,1631.8,1631.6,0.8255]
[1745323289251,6.12759257,1632.0,1631.2,0.7927]
[1745323289252,6.12914191,1631.6,1631.2,0.7927]
[1745323289551,6.1295295,1631.5,1631.2,0.7927]
[1745323289750,6.1295295,1631.5,1631.2,1.24837469]
[1745323290051,6.13152041,1631.0,1630.8,0.7927]
[1745323290237,6.13175448,1630.9,1630.6,4.55674694]
[1745323290572,6.13178239,1630.9,1630.6,4.55674694]
[1745323291555,6.13216912,1630.8,1630.6,0.7927]
[1745323291853,6.13173246,1630.9,1630.6,1.41457]
[1745323292022,6.13173246,1630.9,1630.6,1.47588919]
[1745323292658,6.13173246,1630.9,1630.6,1.41457]
[1745323292858,6.13226455,1630.8,1630.5,5.426]
[1745323293172,6.133088,1630.5,1630.2,20.202]
[1745323293323,6.1336442,1630.4,1630.1,0.7927]
[1745323294047,12.26739321,1630.4,1630.1,0.7927]
[1745323294248,6.1336442,1630.4,1630.1,0.7927]
[1745323294624,12.26740236,1630.4,1630.1,0.7927]
[1745323294824,12.26740236,1630.4,1629.9,3.80770763]
[1745323294825,6.13384039,1630.3,1629.9,0.7927]
[1745323295061,6.13472115,1630.1,1629.9,0.7927]
[1745323296269,6.13422949,1630.2,1629.9,0.7927]
[1745323296770,6.13422949,1630.2,1629.9,0.85404537]
[1745323297563,6.13422949,1630.2,1629.9,0.7927]
[1745323298532,6.13462251,1630.1,1629.9,0.7927]
[1745323298890,6.13462251,1630.1,1629.7,3.80770763]
[1745323298891,12.27057683,1630.0,1629.7,0.7927]
[1745323299039,6.13525803,1630.0,1629.7,0.7927]
[1745323299380,6.13539838,1629.9,1629.5,6.2217]
[1745323299569,6.13578154,1629.8,1629.5,6.2217]
[1745323300667,6.13625023,1629.7,1629.5,5.429]
[1745323301194,12.27260178,1629.7,1629.3,4.59330763]
[1745323301495,6.13650913,1629.6,1629.3,6.20941478]
[1745323301645,6.13620443,1629.7,1629.3,6.20941478]
[1745323302679,12.2725685,1629.7,1629.3,6.20941478]
[1745323302888,6.13620443,1629.7,1629.3,6.20941478]
[1745323303183,12.27261954,1629.7,1629.3,6.20941478]
[1745323303647,0.7692,1629.7,1629.2,5.43]
[1745323303846,6.1367407,1629.6,1629.2,5.43]
[1745323304580,12.27352357,1629.6,1629.2,5.43]
[1745323304780,6.13695217,1629.5,1629.1,4.59330763]
[1745323304975,6.13695217,1629.5,1629.2,5.43]
[1745323306423,6.13787797,1629.3,1629.1,6.68406559]
[1745323306583,12.27493785,1629.4,1629.1,6.74544077]
[1745323306781,6.13773266,1629.3,1629.1,1.31444077]
[1745323307084,6.13798183,1629.2,1629.0,20.213]
[1745323307261,6.1377498,1629.3,1628.9,6.2166]
[1745323307458,6.82715795,1629.6,1628.9,7.83296616]
[1745323307775,6.13698356,1629.5,1628.9,7.83296616]
[1745323307977,6.13815566,1629.2,1628.9,8.30135123]
[1745323308183,6.13779904,1629.3,1629.0,0.06137858]
[1745323308391,6.13765833,1629.3,1628.9,8.30135123]
[1745323308599,6.13847834,1629.1,1628.9,1.25398507]
[1745323309075,6.13873542,1629.0,1628.7,0.7988]
[1745323309245,6.13930267,1628.9,1628.7,1.26940103]
[1745323309449,6.13873542,1629.0,1628.7,0.7988]
[1745323309751,6.13915697,1628.9,1628.7,0.7988]
[1745323310060,6.13915697,1628.9,1628.6,5.42]
[1745323310488,6.13873542,1629.0,1628.7,0.06139049]
[1745323311684,6.13923236,1628.9,1628.7,0.06139049]
[1745323311843,6.13949088,1628.8,1628.6,9.22770763]
[1745323312046,6.13949088,1628.8,1628.6,5.42]
[1745323312485,6.96982042,1628.9,1628.5,0.7988]
[1745323312657,6.14017344,1628.7,1628.4,5.421]
[1745323312863,6.13948919,1628.8,1628.3,0.7988]
[1745323313061,6.14059743,1628.6,1628.3,0.7988]
[1745323314393,6.14049991,1628.6,1628.3,0.7988]
[1745323315685,0.7602,1628.5,1628.2,4.26980078]
[1745323315858,6.13892649,1629.0,1628.4,3.80770763]
[1745323316056,6.13892649,1629.0,1628.5,0.06139541]
[1745323316274,12.27796022,1629.0,1628.5,0.06139541]
[1745323316472,6.13892649,1629.0,1628.5,0.06139541]
[1745323316693,13.50571328,1629.0,1628.5,1.06237787]
[1745323316992,6.13892649,1629.0,1628.5,7.20298409]
[1745323317190,6.13875517,1629.0,1628.6,0.8054]
[1745323318972,6.13875517,1629.0,1628.6,1.25677205]
[1745323319676,12.27778732,1629.0,1628.6,1.25677205]
[1745323320096,12.27777596,1629.0,1628.6,1.25677205]
[1745323320296,0.7602,1629.2,1628.6,1.25677205]
[1745323320605,12.27816608,1629.0,1628.6,1.25677205]
[1745323320772,6.13908304,1629.0,1628.6,1.25677205]
[1745323321188,6.13908304,1629.0,1628.6,2.0965961]
[1745323322112,6.13899929,1629.0,1628.6,1.25677205]
[1745323322626,12.7883075,1629.3,1628.8,0.8054]
[1745323322927,6.13805719,1629.2,1628.8,0.8054]
[1745323323296,12.2763448,1629.2,1628.8,0.8054]
[1745323323628,6.13836742,1629.1,1628.9,0.34075538]
[1745323323830,6.13805719,1629.2,1628.9,0.34075538]
[1745323323988,6.13803297,1629.2,1628.9,0.40214082]
[1745323324184,6.13780273,1629.3,1628.9,0.40214082]
[1745323324389,12.27571021,1629.3,1628.9,0.40214082]
[1745323324585,12.27571021,1629.3,1629.0,0.34075538]
[1745323325129,6.13780273,1629.3,1629.0,0.34075538]
[1745323325505,6.13798564,1629.2,1629.0,0.34075538]
[1745323326130,6.13780273,1629.3,1629.0,0.34075538]
[1745323326519,6.89758147,1629.4,1629.1,0.34075538]
[1745323327410,6.89758147,1629.4,1629.2,0.34075538]
[1745323327625,6.89743345,1629.4,1629.2,0.34075538]
[1745323328024,8.74317911,1629.4,1629.2,0.34075538]
[1745323328193,6.1376051,1629.3,1629.2,0.34075538]
[1745323328623,6.1376051,1629.3,1628.9,0.34075538]
[1745323328834,6.1380786,1629.2,1628.9,0.34075538]
[1745323329132,6.1376051,1629.3,1628.9,0.34075538]
[1745323329338,6.1376051,1629.3,1629.0,0.34075538]
[1745323330111,6.1380272,1629.2,1629.0,0.34075538]
[1745323330405,6.1380272,1629.2,1629.1,0.34075538]
[1745323331212,6.1376051,1629.3,1629.1,0.34075538]
[1745323331416,7.01196018,1629.3,1629.2,0.34075538]
[1745323332921,6.1376051,1629.3,1629.2,0.34075538]
[1745323337702,6.9622051,1629.3,1629.2,0.34075538]
[1745323338027,6.13902348,1629.0,1628.6,5.00464317]
[1745323338230,12.27804696,1629.0,1628.6,5.00464317]
[1745323338400,6.13902348,1629.0,1628.6,1.23707205]
[1745323338602,6.96362348,1629.0,1628.6,1.83763461]
[1745323338804,6.96362348,1629.0,1628.7,0.3430333]
[1745323339504,6.13858932,1629.1,1628.7,4.17199509]
[1745323339828,6.13858932,1629.1,1628.8,0.3430333]
[1745323340197,6.96282788,1629.2,1628.8,0.3430333]
[1745323340198,6.13822788,1629.2,1628.9,0.7857]
[1745323340403,6.13780492,1629.3,1629.0,0.3430333]
[1745323340801,6.13816257,1629.2,1629.0,0.3430333]
[1745323341030,12.27643931,1629.2,1629.0,0.3430333]
[1745323341214,6.1383586,1629.1,1629.0,0.3430333]
[1745323341537,12.27642409,1629.2,1628.8,0.06138768]
[1745323341734,6.13850644,1629.1,1628.8,0.06138768]
[1745323342099,6.13850644,1629.1,1628.7,4.61465881]
[1745323342633,6.13850644,1629.1,1628.8,0.34312428]
[1745323342835,6.75235708,1629.1,1628.8,0.34312428]
[1745323343025,6.13885822,1629.0,1628.8,0.34312428]
[1745323343408,13.71557779,1629.1,1628.8,0.34312428]
[1745323343607,13.71557779,1629.1,1628.9,0.34312428]
[1745323343809,6.13873542,1629.0,1628.9,0.34312428]
[1745323344003,8.66467282,1629.0,1628.9,0.34312428]
[1745323344917,9.48927282,1629.0,1628.9,0.34312428]
[1745323345349,6.14036079,1628.6,1628.3,4.61467597]
[1745323345641,6.14028904,1628.6,1628.3,5.08309256]
[1745323345805,6.14028904,1628.6,1628.3,5.02168771]
[1745323346000,6.14028904,1628.6,1628.3,6.06435648]
[1745323346206,6.14028904,1628.6,1628.4,0.34359287]
[1745323346903,6.1406202,1628.5,1628.4,0.34359287]
[1745323347499,6.14250614,1628.0,1627.9,0.7738]
[1745323347705,6.14363826,1627.7,1627.6,1.2292572]
[1745323347921,6.14332426,1627.8,1627.6,0.7738]
[1745323348124,6.1435087,1627.8,1627.3,5.15537112]
[1745323348408,12.28704021,1627.8,1627.3,6.28544955]
[1745323348642,0.7745,1627.9,1627.4,0.06143827]
[1745323348643,6.9175758,1627.9,1627.4,0.06143827]
[1745323348858,6.14328634,1627.8,1627.4,0.06143827]
[1745323349009,12.22234879,1628.1,1627.6,0.7738]
[1745323349210,6.14269439,1628.0,1627.6,0.83523149]
[1745323349619,6.14269439,1628.0,1627.6,0.7738]
[1745323349903,12.22234879,1628.1,1627.7,0.06143149]
[1745323349904,12.22219498,1628.1,1627.7,0.06143149]
[1745323350110,8.05605358,1628.1,1627.7,0.06143149]
[1745323350342,8.05605358,1628.1,1627.6,1.23312168]
[1745323350509,6.14252007,1628.0,1627.6,1.23312168]
[1745323350718,8.05605358,1628.1,1627.6,1.23312168]
[1745323351013,14.19850359,1628.1,1627.6,1.23312168]
[1745323351209,5.406,1628.2,1627.7,0.06142962]
[1745323351447,12.32268371,1628.4,1627.8,6.91681503]
[1745323351747,12.32258311,1628.4,1627.9,0.06141944]
[1745323351948,12.32258311,1628.4,1627.9,6.20421366]
[1745323352111,12.32258311,1628.4,1627.9,7.89847389]
[1745323352313,18.46384617,1628.4,1627.9,1.75567967]
[1745323352635,12.32258311,1628.4,1627.9,7.89855086]
[1745323352835,6.14077461,1628.5,1627.9,7.89855086]
[1745323353041,6.14077461,1628.5,1627.9,7.83713141]
[1745323353261,6.14111271,1628.4,1627.9,1.69426023]
[1745323353456,0.72351429,1628.5,1627.9,1.7556763]
[1745323353617,0.72351429,1628.5,1628.0,0.7738]
[1745323353618,6.14120727,1628.4,1628.0,0.7738]
[1745323354256,6.86427451,1628.5,1628.0,0.7738]
[1745323354414,13.00521047,1628.5,1628.0,0.7738]
[1745323354746,6.86427451,1628.5,1628.0,0.7738]
[1745323354947,6.86427451,1628.5,1628.1,0.06141608]
[1745323355554,0.72351429,1628.5,1628.0,0.7738]
[1745323355860,6.14125601,1628.4,1628.0,0.7738]
[1745323356037,12.28252837,1628.4,1628.0,0.7738]
[1745323356359,6.14125601,1628.4,1628.0,0.7738]
[1745323356649,6.14155538,1628.3,1628.0,0.7738]
[1745323357052,0.01809868,1628.2,1628.0,0.7738]
[1745323358251,0.01809868,1628.2,1628.0,1.47159666]
[1745323358551,0.01809868,1628.2,1628.0,7.61398165]
[1745323358718,0.01809868,1628.2,1628.0,11.43541253]
[1745323359132,0.01809868,1628.2,1628.0,5.35457201]
[1745323359332,0.01809868,1628.2,1628.0,11.49697631]
[1745323359528,0.01809868,1628.2,1628.1,1.14969763]
[1745323360151,0.01809868,1628.2,1628.1,7.29182649]
[1745323360453,0.01809868,1628.2,1628.1,8.08342649]
[1745323361821,0.01809868,1628.2,1628.1,10.55408713]
[1745323362840,0.01809868,1628.2,1628.1,10.49268149]
[1745323363039,0.01809868,1628.2,1628.1,10.55408227]
[1745323363344,1e-08,1628.2,1628.1,10.55408227]
[1745323363564,1e-08,1628.2,1628.1,8.60917126]
[1745323363776,1e-08,1628.2,1628.1,9.22316447]
[1745323364171,0.7501,1629.1,1628.7,0.7916]
[1745323364343,0.7501,1629.1,1628.7,0.85299133]
[1745323364545,6.88871595,1629.1,1628.7,0.7916]
[1745323365648,0.7501,1629.1,1628.7,0.7916]
[1745323365967,6.88867405,1629.1,1628.7,0.7916]
[1745323366167,6.13886879,1629.0,1628.7,0.7916]
[1745323366358,13.02732502,1629.1,1628.7,0.7916]
[1745323366591,6.88867405,1629.1,1628.7,0.7916]
[1745323366880,6.1382049,1629.2,1628.7,2.00795496]
[1745323367380,6.13851539,1629.1,1628.7,2.00795496]
[1745323368182,0.31983991,1629.4,1628.9,9.96046819]
[1745323368367,6.13708048,1629.5,1629.0,6.9914852]
[1745323368678,12.2733832,1629.6,1629.1,6.13834697]
[1745323368873,6.13687042,1629.5,1629.2,0.06137285]
[1745323369079,6.13665051,1629.6,1629.2,0.06137285]
[1745323369378,12.27349724,1629.6,1629.2,0.06137285]
[1745323369577,6.88633089,1629.7,1629.3,0.7916]
[1745323369786,6.88557927,1629.9,1629.4,6.19850951]
[1745323369965,6.13584805,1629.8,1629.4,0.06136758]
[1745323370171,6.13623701,1629.7,1629.3,4.61315882]
[1745323371761,6.13623701,1629.7,1629.3,0.7916]
[1745323372463,6.13623701,1629.7,1629.3,1.24708196]
[1745323374784,6.13623701,1629.7,1629.3,7.38465627]
[1745323375091,6.13623701,1629.7,1629.3,3.14222233]
[1745323375382,6.13623701,1629.7,1629.3,9.27980214]
[1745323376387,6.13623701,1629.7,1629.3,3.14222233]
[1745323377387,6.13623701,1629.7,1629.3,6.90740802]
[1745323377965,6.13674625,1629.6,1629.3,5.01226765]
[1745323380002,6.13589181,1629.8,1629.3,11.21111918]
[1745323380174,6.13589181,1629.8,1629.4,0.06136343]
[1745323380505,6.1359001,1629.8,1629.3,11.14974357]
[1745323380690,6.1359001,1629.8,1629.4,0.06136193]
[1745323380892,12.27189987,1629.8,1629.4,1.12111055]
[1745323381108,6.13629249,1629.7,1629.4,1.12111055]
[1745323381311,6.13629249,1629.7,1629.3,5.01226765]
[1745323381474,12.27273233,1629.7,1629.3,5.01226765]
[1745323382506,6.13629249,1629.7,1629.3,5.01226765]
[1745323382664,6.13588104,1629.8,1629.3,11.14976183]
[1745323382864,6.13535912,1629.9,1629.5,0.8033]
[1745323383065,6.13535912,1629.9,1629.5,1.50347033]
[1745323383506,12.27098546,1629.9,1629.5,1.50347033]
[1745323384019,6.13572342,1629.8,1629.5,1.50347033]
[1745323384403,6.13572342,1629.8,1629.5,0.8033]
[1745323384917,12.27112212,1629.9,1629.5,0.8033]
[1745323385094,6.13573854,1629.8,1629.5,0.8033]
[1745323385607,6.13552529,1629.9,1629.5,0.8033]
[1745323385786,6.13551693,1629.9,1629.5,0.8033]
[1745323386107,6.13551693,1629.9,1629.5,5.2625358]
[1745323386306,18.50198173,1630.1,1629.5,11.39907172]
[1745323386512,17.69673201,1630.1,1629.6,6.13643975]
[1745323386680,17.69673201,1630.1,1629.5,10.59577172]
[1745323386681,6.13570782,1629.9,1629.7,0.8033]
[1745323387377,6.13570782,1629.9,1629.5,3.76518569]
[1745323387378,6.13565411,1629.9,1629.5,4.56848569]
[1745323387568,6.13583431,1629.8,1629.5,5.02533426]
[1745323388008,6.13644024,1629.7,1629.5,0.8033]
[1745323388195,6.13644024,1629.7,1629.3,5.02396765]
[1745323388399,6.13665995,1629.6,1629.3,5.02396765]
[1745323389598,6.13696264,1629.5,1629.3,5.02396765]
[1745323390609,6.13665995,1629.6,1629.3,5.02396765]
[1745323391475,6.8306712,1629.6,1629.0,1.9092044]
[1745323391674,6.13787309,1629.3,1629.0,0.8279]
[1745323392106,12.27583173,1629.3,1629.0,0.8279]
[1745323392516,6.13787309,1629.3,1629.0,0.8279]
[1745323392689,12.27583409,1629.3,1629.0,1.28659675]
[1745323392897,6.13787309,1629.3,1629.0,1.28659675]
[1745323393829,13.0931255,1629.4,1629.0,5.05178244]
[1745323394134,6.13765689,1629.3,1629.0,6.17700403]
[1745323394433,6.13765689,1629.3,1629.0,5.05178244]
[1745323395807,6.13765689,1629.3,1629.0,4.59308569]
[1745323397412,12.27552862,1629.3,1629.0,5.04824294]
[1745323397725,12.27552862,1629.3,1628.7,0.8279]
[1745323397726,6.13933266,1628.9,1628.7,0.8279]
[1745323397927,6.13933266,1628.9,1628.5,20.238]
[1745323397928,6.75323654,1628.9,1628.5,0.8279]
[1745323398229,6.13959893,1628.8,1628.5,0.8279]
[1745323399628,11.50646845,1629.1,1628.5,0.8279]
[1745323399928,6.13989909,1628.7,1628.5,1.28526474]
[1745323400129,6.14024315,1628.6,1628.5,0.45736474]
[1745323400295,6.13926698,1628.9,1628.6,0.8279]
[1745323400518,6.1396516,1628.8,1628.6,0.8279]
[1745323400918,12.2786453,1628.9,1628.6,0.8279]
[1745323401233,6.13926698,1628.9,1628.6,0.8279]
[1745323402953,6.13898011,1629.0,1628.6,0.8279]
[1745323403139,12.27855175,1628.9,1628.6,0.8279]
[1745323403518,6.13913167,1628.9,1628.6,0.88929471]
[1745323404046,12.27854135,1628.9,1628.6,0.8279]
[1745323404247,6.13950702,1628.8,1628.6,0.8279]
[1745323404453,6.13913167,1628.9,1628.6,0.8279]
[1745323405046,6.13960576,1628.8,1628.6,0.8279]
[1745323406253,6.14024315,1628.6,1628.5,0.46320539]
[1745323406414,12.28000494,1628.7,1628.4,10.02008569]
[1745323406619,6.1402642,1628.6,1628.4,10.02008569]
[1745323407553,6.1402642,1628.6,1628.4,4.59308569]
[1745323408020,0.8182,1628.8,1628.3,0.46560764]
[1745323408219,0.8182,1628.8,1628.2,0.7662]
[1745323408220,6.14094009,1628.5,1628.2,0.7662]
[1745323408438,6.14102283,1628.4,1628.2,0.7662]
[1745323408638,6.14094009,1628.5,1628.2,1.75613857]
[1745323408857,12.2818782,1628.5,1628.2,1.75613857]
[1745323409173,6.1400074,1628.7,1628.3,3.76518569]
[1745323409671,12.28012826,1628.7,1628.3,3.76518569]
[1745323409970,6.14027087,1628.6,1628.3,3.76518569]
[1745323410269,6.14027087,1628.6,1628.2,0.7662]
[1745323410473,6.14077268,1628.5,1628.2,0.7662]
[1745323411671,6.14042686,1628.6,1628.2,1.22421385]
[1745323413029,12.2802353,1628.7,1628.3,0.06141142]
[1745323413230,6.14010052,1628.7,1628.3,3.82659303]
[1745323413429,6.14010052,1628.7,1628.3,3.76518569]
[1745323413762,6.14010052,1628.7,1628.3,4.87827888]
[1745323414262,12.28026334,1628.7,1628.3,4.87827888]
[1745323414424,6.14010052,1628.7,1628.3,4.87827888]
[1745323414628,12.28029173,1628.7,1628.3,4.87827888]
[1745323414927,6.14010052,1628.7,1628.3,4.87827888]
[1745323415360,12.28021848,1628.7,1628.3,4.87827888]
[1745323415567,6.14028337,1628.6,1628.3,4.87827888]
[1745323415774,12.28029631,1628.7,1628.3,3.76518569]
[1745323416234,6.14010052,1628.7,1628.3,3.76518569]
[1745323416435,13.04604544,1629.0,1628.5,3.76518569]
[1745323416639,6.08,1629.0,1628.7,4.53138569]
[1745323416835,6.1388202,1629.0,1628.7,4.53138569]
[1745323418464,6.13875839,1629.0,1628.7,4.53138569]
[1745323418667,6.13875839,1629.0,1628.7,4.98452426]
[1745323418869,12.27725165,1629.1,1628.7,5.44545614]
[1745323419076,6.13811989,1629.2,1628.7,11.58507275]
[1745323420287,6.13811989,1629.2,1628.7,5.44545614]
[1745323420453,6.13846607,1629.1,1628.7,5.44545614]
[1745323420639,6.13846607,1629.1,1628.8,0.54454561]
[1745323422273,6.13846607,1629.1,1628.7,5.44545614]
[1745323422471,6.13874581,1629.0,1628.7,5.44545614]
[1745323422683,6.13874581,1629.0,1628.7,1.22713188]
[1745323423513,6.13925178,1628.9,1628.7,1.22713188]
[1745323423793,12.27779012,1629.0,1628.7,1.22713188]
[1745323424091,6.13874581,1629.0,1628.7,1.22713188]
[1745323426887,12.27779384,1629.0,1628.7,1.22713188]
[1745323427090,6.13874581,1629.0,1628.7,1.22713188]
[1745323427699,12.27783651,1629.0,1628.7,1.22713188]
[1745323427878,6.13915376,1628.9,1628.7,1.22713188]
[1745323428078,12.27783651,1629.0,1628.7,1.22713188]
[1745323428265,6.13874581,1629.0,1628.7,1.22713188]
[1745323428465,12.27778514,1629.0,1628.7,1.22713188]
[1745323429515,6.13874581,1629.0,1628.7,1.22713188]
[1745323430011,6.13874581,1629.0,1628.7,4.99231757]
[1745323430304,6.13808195,1629.2,1628.8,0.49923176]
[1745323430507,6.13773515,1629.3,1628.9,4.52088569]
[1745323430711,6.13773515,1629.3,1628.9,4.58226952]
[1745323432896,6.13773515,1629.3,1628.9,4.52088569]
[1745323433414,12.27562376,1629.3,1628.9,4.52088569]
[1745323433622,6.13773515,1629.3,1628.9,4.52088569]
[1745323433775,6.13773515,1629.3,1628.9,5.63682504]
[1745323434412,6.13773515,1629.3,1628.9,5.69820701]
[1745323435626,6.13773515,1629.3,1628.9,5.69690901]
[1745323435778,6.13773515,1629.3,1628.9,5.63552704]
[1745323436613,6.13773515,1629.3,1628.9,5.69690902]
[1745323436910,6.13773515,1629.3,1628.9,5.63552704]
[1745323437101,6.13773515,1629.3,1628.9,4.51958769]
[1745323437289,6.13773515,1629.3,1628.9,4.58096968]
[1745323437612,6.13741397,1629.4,1628.9,10.71974952]
[1745323437810,6.13741397,1629.4,1628.9,10.65836753]
[1745323438204,6.13741397,1629.4,1628.9,4.51958769]
[1745323438400,6.13799444,1629.2,1628.9,5.63539561]
[1745323438602,6.13799444,1629.2,1628.9,4.51958769]
[1745323438998,6.13925624,1628.9,1628.7,1.23113188]
[1745323439206,6.13876421,1629.0,1628.7,1.23113188]
[1745323439897,12.27779576,1629.0,1628.7,1.23113188]
[1745323440099,6.13876421,1629.0,1628.7,1.23113188]
[1745323440402,6.13858863,1629.1,1628.7,1.79215582]
[1745323440624,6.13775712,1629.3,1628.8,3.76518569]
[1745323440829,6.13775712,1629.3,1628.9,0.7702]
[1745323442114,6.13742637,1629.4,1629.1,0.7702]
[1745323442904,11.49203082,1629.5,1629.1,0.7702]
[1745323443099,6.13688989,1629.5,1629.2,3.76518569]
[1745323443418,12.2734332,1629.6,1629.2,3.76518569]
[1745323443623,12.2734332,1629.6,1629.2,4.83255655]
[1745323443802,12.2734332,1629.6,1629.2,4.89392769]
[1745323444002,6.89299629,1629.9,1629.4,9.90240564]
[1745323444215,6.89299629,1629.9,1629.6,0.7702]
[1745323444216,6.13549629,1629.9,1629.6,0.7702]
[1745323444534,6.89268676,1630.0,1629.6,4.53538569]
[1745323444704,6.13480262,1630.1,1629.7,0.45353857]
[1745323445329,6.13499404,1630.0,1629.7,0.45353857]
[1745323445696,12.26970301,1630.1,1629.7,0.5148913]
[1745323445925,12.26970301,1630.1,1629.7,0.45353857]
[1745323446706,6.13480262,1630.1,1629.7,0.45353857]
[1745323446901,6.13403395,1630.3,1629.8,4.53538569]
[1745323447118,6.13403395,1630.3,1629.9,0.45353857]
[1745323447637,6.13403395,1630.3,1630.0,0.7702]
[1745323447638,6.13425314,1630.2,1630.0,0.7702]
[1745323448218,12.26873905,1630.2,1630.0,0.7702]
[1745323448424,6.13459296,1630.1,1629.8,4.53538569]
[1745323449115,6.13500862,1630.0,1629.8,0.7702]
[1745323449308,6.13480453,1630.1,1629.8,0.7702]
[1745323452138,12.26971337,1630.1,1629.8,0.7702]
[1745323452312,6.13480453,1630.1,1629.8,0.7702]
[1745323452506,6.13497731,1630.0,1629.8,0.7702]
[1745323454342,6.13581886,1629.8,1629.6,0.7648]
[1745323454742,12.27183031,1629.8,1629.6,0.7648]
[1745323454922,6.13581886,1629.8,1629.6,0.7648]
[1745323455546,6.13581886,1629.8,1629.5,0.45180334]
[1745323455715,6.13588015,1629.8,1629.4,6.1168]
[1745323456742,12.27188329,1629.8,1629.4,6.1168]
[1745323456952,6.13588015,1629.8,1629.4,6.1168]
[1745323457646,6.13624348,1629.7,1629.4,6.1168]
[1745323458243,12.27128853,1629.9,1629.5,3.76518569]
[1745323458416,6.13562122,1629.9,1629.5,3.76518569]
[1745323458611,6.13519635,1630.0,1629.5,3.76518569]
[1745323458933,6.13501232,1630.0,1629.7,0.7648]
[1745323459445,6.13475657,1630.1,1629.7,4.52998569]
[1745323459748,12.2143669,1630.2,1629.8,0.06135212]
[1745323459950,6.1343669,1630.2,1629.7,10.66594914]
[1745323460719,6.1343669,1630.2,1629.7,4.52998569]
[1745323461053,6.13474964,1630.1,1629.7,4.52998569]
[1745323461814,6.13501252,1630.0,1629.7,4.81297066]
[1745323462014,12.26967032,1630.1,1629.7,4.52998569]
[1745323462252,6.13474964,1630.1,1629.7,4.52998569]
[1745323464917,13.04059713,1630.3,1629.8,0.06135044]
[1745323465123,6.13399214,1630.3,1629.8,6.90041475]
[1745323465618,6.13471891,1630.1,1629.8,0.7648]
[1745323466154,6.13503396,1630.0,1629.8,0.7648]
[1745323467349,6.13474568,1630.1,1629.8,0.7648]
[1745323468469,6.13518822,1630.0,1629.8,0.7648]
[1745323469467,13.04149699,1630.2,1629.8,0.7648]
[1745323469646,6.13466185,1630.1,1629.8,0.7648]
[1745323470247,12.26956462,1630.1,1629.8,0.7648]
[1745323470458,6.13466185,1630.1,1629.8,0.7648]
[1745323471739,8.21110534,1630.2,1629.8,0.7648]
[1745323472073,6.90695564,1630.2,1629.8,4.52998569]
[1745323472281,13.04144205,1630.2,1629.8,4.52998569]
[1745323472641,13.04149782,1630.2,1629.8,4.52998569]
[1745323472841,6.90695564,1630.2,1629.8,4.52998569]
[1745323473037,6.13445564,1630.2,1629.8,4.52998569]
[1745323473255,6.13445564,1630.2,1629.8,5.60270541]
[1745323473849,6.13445564,1630.2,1629.8,1.83751972]
[1745323474054,6.13482326,1630.1,1629.8,0.7648]
[1745323476192,6.13444256,1630.2,1629.8,0.7648]
[1745323476902,6.13444256,1630.2,1629.8,4.52998569]
[1745323477489,12.26893437,1630.2,1629.8,0.7648]
[1745323478091,6.1347078,1630.1,1629.8,0.7648]
[1745323478398,12.26890886,1630.2,1629.8,4.52998569]
[1745323478598,12.26890886,1630.2,1629.8,5.59658336]
[1745323479179,6.13462222,1630.1,1629.8,5.59658336]
[1745323479372,6.13462222,1630.1,1629.8,4.52998569]
[1745323479704,12.26892768,1630.2,1629.8,4.52998569]
[1745323480368,6.13459757,1630.1,1629.8,4.52998569]
[1745323481321,6.13459757,1630.1,1629.8,0.7648]
[1745323481468,12.26944535,1630.1,1629.8,0.7648]
[1745323482406,12.26952462,1630.1,1629.8,0.7648]
[1745323484393,6.13459757,1630.1,1629.8,0.7648]
[1745323486211,12.2694437,1630.1,1629.8,0.7648]
[1745323487286,6.13459757,1630.1,1629.8,0.7648]
[1745323487526,12.26945488,1630.1,1629.8,0.7648]
[1745323488398,6.13501142,1630.0,1629.8,0.7648]
[1745323491021,6.13668855,1629.6,1629.3,0.7584]
[1745323491190,0.8231,1629.9,1629.3,0.7584]
[1745323491520,6.13722842,1629.4,1629.2,1.06737086]
[1745323491698,6.13770597,1629.3,1629.1,0.7584]
[1745323492100,6.13798183,1629.2,1629.1,0.7584]
[1745323492302,6.9031,1629.6,1629.1,0.7584]
[1745323492617,6.13733577,1629.4,1629.1,0.7584]
[1745323492799,6.13733577,1629.4,1629.1,1.21113599]
[1745323492995,6.13768442,1629.3,1629.1,1.25603217]
[1745323493201,6.13798183,1629.2,1629.0,3.76518569]
[1745323493411,6.13846488,1629.1,1628.9,6.16978102]
[1745323493612,0.8231,1629.3,1628.5,0.73226165]
[1745323493613,6.13893615,1629.0,1628.7,0.7584]
[1745323493916,6.13926662,1628.9,1628.5,4.52358569]
[1745323494117,12.27941903,1628.8,1628.5,4.52358569]
[1745323494318,6.13952914,1628.8,1628.5,4.97594426]
[1745323494620,6.13932068,1628.9,1628.5,4.97594426]
[1745323494621,6.13926846,1628.9,1628.5,0.45235857]
[1745323494828,12.27866884,1628.9,1628.5,3.76518569]
[1745323494991,6.13972917,1628.8,1628.4,0.45503438]
[1745323495187,6.13989177,1628.7,1628.3,4.52358569]
[1745323495404,6.14039152,1628.6,1628.3,0.7584]
[1745323495602,6.96707115,1628.7,1628.3,0.7584]
[1745323495808,6.14028297,1628.6,1628.3,0.7584]
[1745323496524,6.13925686,1628.9,1628.4,6.96615741]
[1745323496738,6.13925686,1628.9,1628.4,0.82531195]
[1745323497115,6.13951843,1628.8,1628.4,0.82531195]
[1745323497829,6.13925686,1628.9,1628.4,0.82531195]
[1745323498030,6.13893829,1629.0,1628.5,3.76518569]
[1745323498328,12.27797382,1629.0,1628.6,0.37651857]